bitfinex-derivatives/quotes_ETHF0:USTF0_20250810
["timestamp","ask_amount","ask_price","bid_price","bid_amount"]
[1754833294116,1.3863,4180.4,4180.3,0.66129]
[1754833294315,1.3863,4180.4,4180.3,23.08679]
[1754833294717,0.6997,4180.4,4180.3,23.08679]
[1754833295117,0.2598,4180.4,4180.3,23.08679]
[1754833295718,1.5521,4180.4,4180.3,23.08679]
[1754833296025,0.2598,4180.4,4180.3,23.08679]
[1754833296222,0.4363,4180.9,4180.8,0.4515]
[1754833296417,0.8773,4180.9,4180.8,22.6195]
[1754833296615,1.2917,4180.9,4180.8,22.6195]
[1754833296818,1.5732,4180.9,4180.8,22.6195]
[1754833297819,0.4547,4180.9,4180.8,22.6195]
[1754833298124,0.2815,4180.9,4180.8,22.6195]
[1754833298518,1.1953,4182.8,4180.8,22.6195]
[1754833298519,1.5782,4181.6,4181.5,0.92976]
[1754833298717,1.5782,4181.6,4181.5,23.09576]
[1754833298924,0.005,4181.6,4181.5,23.09576]
[1754833299925,0.2865,4181.6,4181.5,23.09576]
[1754833302123,0.005,4181.6,4181.5,23.09576]
[1754833302325,0.005,4181.6,4181.5,26.24453085]
[1754833302521,0.005,4181.6,4181.5,34.38053197]
[1754833302723,0.005,4181.6,4181.5,32.24453085]
[1754833303421,1e-05,4181.6,4181.5,32.24453085]
[1754833304613,1e-05,4181.6,4181.5,35.42953085]
[1754833304814,0.8773,4182.4,4181.6,1.19562]
[1754833305019,0.4547,4182.3,4182.2,0.92968]
[1754833305215,0.4547,4182.3,4182.2,23.08668]
[1754833305216,0.2815,4182.3,4182.2,23.08668]
[1754833305524,0.2815,4182.3,4182.2,26.12767867]
[1754833306123,1.5732,4182.3,4182.2,26.12767867]
[1754833306513,1.5732,4182.3,4182.2,26.12667867]
[1754833306827,0.7189,4182.3,4182.2,26.12667867]
[1754833307026,1.2917,4182.9,4182.8,0.9296]
[1754833307224,1.2917,4182.9,4182.8,23.0856]
[1754833307427,1.2917,4182.9,4182.8,22.156]
[1754833307625,1.5732,4182.9,4182.8,22.156]
[1754833308130,1.5732,4182.9,4182.8,22.6075]
[1754833308529,1.5732,4182.9,4182.8,22.156]
[1754833309927,0.6142,4182.9,4181.4,3.185]
[1754833310123,1.5732,4182.3,4182.2,0.47817]
[1754833310323,1.5732,4182.3,4182.2,22.81547]
[1754833310528,1.5732,4182.3,4182.2,23.08167]
[1754833310733,1.5732,4182.3,4182.2,22.81547]
[1754833311226,1.5732,4182.3,4182.2,22.63017]
[1754833311531,1.5732,4182.3,4182.2,22.152]
[1754833314726,1.5732,4181.9,4181.8,0.47822]
[1754833315025,1.5732,4181.9,4181.4,0.2662]
[1754833315225,0.6142,4181.9,4181.8,22.147]
[1754833315622,0.6142,4181.9,4181.5,0.2662]
[1754833315829,1.5732,4181.8,4181.7,0.1853]
[1754833316029,1.5732,4181.8,4181.7,0.4515]
[1754833319632,0.959,4182.4,4181.8,0.2662]
[1754833319942,0.005,4182.5,4182.4,0.92966]
[1754833320134,0.005,4182.5,4182.4,0.4515]
[1754833320135,0.7239,4182.5,4182.4,0.4515]
[1754833320433,1.5782,4182.5,4182.4,23.07366]
[1754833320631,0.2865,4182.5,4182.4,23.07366]
[1754833320835,0.005,4182.5,4182.4,23.07366]
[1754833321027,0.2865,4182.5,4182.4,23.07366]
[1754833321335,1.5782,4182.5,4182.4,23.07266]
[1754833322232,1.3151,4182.5,4182.4,23.07266]
[1754833322634,1.5782,4182.5,4182.4,23.07266]
[1754833323339,0.2865,4182.5,4182.4,23.07266]
[1754833323832,1.5782,4182.5,4182.4,0.66346]
[1754833324038,1.5782,4182.5,4182.4,23.07066]
[1754833324440,1.5782,4182.5,4182.4,22.5925]
[1754833324742,0.2642,4182.3,4182.2,0.47818]
[1754833324937,1.5732,4182.3,4182.2,22.61818]
[1754833325440,1.5732,4182.3,4182.2,22.14]
[1754833325644,1.5923,4181.9,4181.8,2.14103912]
[1754833325831,0.6348,4181.9,4181.8,22.139]
[1754833326234,0.6348,4181.9,4181.8,22.3212]
[1754833326544,1.5923,4181.9,4181.8,22.3212]
[1754833326841,1.5923,4181.9,4181.8,22.139]
[1754833327242,1.5923,4181.9,4181.8,22.5963]
[1754833329836,1.5923,4181.9,4181.8,22.139]
[1754833330744,1.5923,4181.9,4181.8,22.3212]
[1754833330945,1.5923,4181.9,4181.8,22.5963]
[1754833331242,1.5923,4181.9,4181.8,22.5933]
[1754833332841,0.2745,4181.9,4181.8,22.5933]
[1754833333345,0.4533,4181.9,4181.8,22.5933]
[1754833333745,0.2745,4181.9,4181.8,24.73433912]
[1754833334948,0.2745,4182.2,4181.9,0.2751]
[1754833335246,0.2745,4182.2,4182.1,0.4573]
[1754833335445,0.2745,4182.2,4182.1,22.5913]
[1754833335744,0.2745,4182.2,4182.1,25.69878909]
[1754833335939,0.2745,4182.4,4182.2,0.47818]
[1754833336148,0.4566,4182.4,4182.3,0.4573]
[1754833336638,0.7311,4182.4,4182.3,0.4573]
[1754833336839,0.005,4182.5,4182.4,0.4573]
[1754833337152,0.005,4182.5,4182.4,22.5903]
[1754833337339,0.2795,4182.5,4182.4,22.5903]
[1754833337534,0.005,4182.5,4182.4,22.5903]
[1754833337749,0.005,4182.5,4182.4,25.73366839]
[1754833338049,0.2745,4183.0,4182.9,0.1822]
[1754833338345,0.2745,4183.0,4182.9,24.73570184]
[1754833338648,0.2745,4183.0,4182.9,25.21380184]
[1754833338948,0.2745,4183.0,4182.9,26.12011692]
[1754833339445,0.4109,4184.3,4183.2,0.2751]
[1754833339641,0.47791,4184.6,4183.2,0.2751]
[1754833339642,1.0457,4183.5,4183.4,0.4573]
[1754833339834,1.3178,4183.5,4183.4,0.93534]
[1754833340243,1.5923,4183.5,4183.4,0.93534]
[1754833340843,1.3202,4183.5,4183.4,0.93534]
[1754833341038,1.3202,4183.5,4183.4,4.06696307]
[1754833341039,0.2745,4183.5,4183.4,4.06696307]
[1754833341434,0.7287,4184.1,4184.0,0.93527]
[1754833341642,0.8675,4184.1,4184.0,23.06327]
[1754833341939,0.6887,4184.3,4184.2,0.4573]
[1754833342140,0.6348,4184.1,4183.7,2.14510676]
[1754833342343,0.4566,4183.9,4183.8,22.7872]
[1754833342641,0.7311,4183.9,4183.8,25.89811463]
[1754833342848,1.3202,4183.9,4183.8,22.7872]
[1754833343148,1.5923,4183.9,4183.8,23.0623]
[1754833343350,1.3202,4183.9,4183.8,23.0623]
[1754833343650,1.5923,4184.4,4184.3,0.93523]
[1754833343844,1.3202,4184.4,4184.3,23.06023]
[1754833344047,0.7311,4184.4,4184.3,23.06023]
[1754833344442,0.6348,4185.0,4184.9,0.47786]
[1754833344649,1.5923,4185.0,4184.9,22.5813]
[1754833345043,1.3202,4185.0,4184.9,22.5813]
[1754833345245,1.5923,4185.0,4184.9,22.5813]
[1754833345449,1.5923,4185.0,4184.6,0.4779]
[1754833345752,1.5923,4184.8,4184.7,22.3052]
[1754833346246,0.2745,4183.9,4183.8,1.7746]
[1754833346446,1.1814,4184.2,4184.1,1.77456]
[1754833346648,0.9036,4184.5,4184.4,1.2966]
[1754833346847,1.1814,4184.5,4184.4,23.4156]
[1754833347048,1.5923,4184.5,4184.4,22.5591]
[1754833347650,1.5923,4184.5,4184.4,23.1456]
[1754833347851,1.5923,4184.5,4184.4,1.2966]
[1754833348054,1.5923,4184.8,4184.7,1.50449]
[1754833348251,1.5923,4184.8,4184.7,1.61409]
[1754833348446,1.5923,4184.8,4184.4,0.47792]
[1754833348754,1.3178,4183.8,4183.7,1.61241]
[1754833349050,1.5923,4183.8,4183.7,26.7990086]
[1754833349453,1.5923,4183.8,4183.7,3.5086986]
[1754833349650,1.5923,4183.8,4183.7,22.118]
[1754833350051,0.9575,4183.7,4183.4,0.47804]
[1754833350352,1.5923,4183.4,4183.3,0.47805]
[1754833350548,1.5923,4183.4,4183.3,22.59605]
[1754833350945,0.47796,4184.2,4183.3,23.03615]
[1754833351154,1.1814,4183.4,4183.3,23.73045]
[1754833351352,1.1814,4183.4,4183.3,23.44475]
[1754833351353,1.5923,4183.4,4183.3,23.44475]
[1754833351951,1.5923,4183.4,4183.3,23.72845]
[1754833352251,1.1814,4183.4,4183.3,23.99845]
[1754833352552,0.9036,4183.4,4183.3,23.99845]
[1754833353954,1.5923,4183.8,4183.7,1.32871]
[1754833354255,0.2745,4183.8,4183.7,23.99841]
[1754833354445,0.005,4185.8,4183.7,28.116]
[1754833354648,0.6348,4184.3,4184.2,1.09265]
[1754833354849,1.5923,4184.3,4184.2,23.72735]
[1754833355151,1.5923,4184.3,4184.2,26.86901098]
[1754833355349,0.7248,4185.1,4185.0,1.31666]
[1754833355553,0.8951,4185.4,4185.3,1.49142]
[1754833355748,0.8951,4185.4,4185.3,1.60072]
[1754833355749,1.1696,4185.4,4185.3,1.60072]
[1754833355949,1.5933,4185.4,4185.2,0.47783]
[1754833356152,0.2745,4185.0,4184.4,34.425]
[1754833356355,1.5933,4185.0,4184.9,0.74287]
[1754833356653,1.1696,4185.0,4184.9,23.71477]
[1754833356850,0.281,4185.0,4184.9,23.71477]
[1754833357152,1.5933,4185.3,4185.2,0.47784]
[1754833357357,1.5933,4185.3,4185.2,22.59084]
[1754833358057,1.5933,4185.3,4185.2,22.113]
[1754833358459,0.6251,4185.1,4185.0,0.47785]
[1754833358658,1.5933,4185.1,4185.0,22.59085]
[1754833359045,0.9682,4185.0,4184.5,0.47791]
[1754833359251,1.5933,4184.6,4184.5,0.47791]
[1754833359558,1.5933,4184.9,4184.8,1.49148]
[1754833359758,1.5933,4184.9,4184.8,1.60078]
[1754833360055,1.5933,4184.9,4184.8,3.61010371]
[1754833360253,1.5933,4184.9,4184.8,22.11]
[1754833360753,1.5933,4184.5,4184.4,34.425]
[1754833360953,1.5933,4184.5,4184.4,56.535]
[1754833361156,1.5933,4184.5,4184.4,34.425]
[1754833361357,1.5933,4184.5,4184.4,56.535]
[1754833361755,1.5933,4184.5,4184.4,22.11]
[1754833361954,1.5933,4183.3,4183.2,35.84496]
[1754833362160,1.5933,4183.3,4183.2,57.68456]
[1754833362358,1.5933,4183.3,4183.2,34.42]
[1754833362574,1.5933,4183.3,4183.2,56.53]
[1754833363875,1.5933,4183.6,4183.5,0.4357]
[1754833364073,1.5933,4183.6,4183.5,22.5457]
[1754833364782,1.5933,4183.6,4183.5,23.6771]
[1754833365677,1.5933,4184.2,4184.1,1.0233]
[1754833365873,0.2635,4184.1,4183.4,0.6765]
[1754833366070,1.5933,4183.5,4183.4,1.77474]
[1754833366270,0.9682,4183.9,4183.8,0.47799]
[1754833366478,1.5933,4183.9,4183.8,22.58899]
[1754833366872,0.3506,4183.9,4183.8,24.15609]
[1754833367073,1.5933,4184.4,4183.7,0.478]
[1754833367273,0.9682,4184.2,4183.7,0.478]
[1754833367467,1.5933,4183.8,4183.7,0.478]
[1754833367680,1.5933,4183.8,4183.7,22.591]
[1754833367884,1.5933,4183.8,4183.7,24.1581]
[1754833368186,1.5933,4183.8,4183.7,23.0267]
[1754833369177,1.5933,4183.8,4183.7,23.4298]
[1754833369366,1.5933,4183.8,4183.7,24.1581]
[1754833370375,1.5933,4183.8,4183.7,23.8877]
[1754833370571,1.5933,4183.8,4183.7,24.1581]
[1754833370770,1.5933,4183.8,4183.7,22.113]
[1754833372877,1.5933,4183.8,4183.7,23.4097]
[1754833373182,1.5933,4183.8,4183.7,23.6801]
[1754833373579,0.47791,4184.6,4183.7,22.2975]
[1754833373880,1.5933,4184.3,4184.2,2.04504]
[1754833374080,1.5933,4184.3,4184.2,24.15804]
[1754833374682,0.4378,4184.3,4184.2,24.15804]
[1754833374883,0.7047,4184.8,4184.7,2.04499]
[1754833374884,1.5933,4184.8,4184.7,2.04499]
[1754833375077,1.5933,4184.8,4184.7,24.15799]
[1754833375078,1.1696,4184.8,4184.7,24.15799]
[1754833375475,0.1743,4184.8,4184.7,24.15799]
[1754833375675,0.4573,4185.1,4185.0,1.09806]
[1754833375875,1.1696,4185.1,4185.0,23.6801]
[1754833376080,1.5933,4185.1,4185.0,23.6801]
[1754833376273,0.2635,4185.4,4185.1,0.47785]
[1754833376589,1.5933,4185.4,4185.3,1.5671]
[1754833376886,1.1696,4185.4,4185.3,23.6781]
[1754833378184,1.5933,4185.4,4185.3,23.6781]
[1754833379581,0.8886,4185.4,4185.3,23.6781]
[1754833380084,0.6191,4185.8,4185.7,2.04488]
[1754833380285,1.5983,4185.8,4185.7,24.15488]
[1754833381181,1.5983,4185.8,4185.7,22.11]
[1754833382093,1.5983,4185.8,4185.7,22.5457]
[1754833382386,1.5983,4185.8,4185.7,23.2222]
[1754833383286,1.5983,4185.8,4185.7,23.6771]
[1754833383983,0.005,4185.8,4185.7,23.6771]
[1754833386282,1.1708,4185.8,4185.7,23.4067]
[1754833386490,0.2834,4185.8,4185.7,23.6733]
[1754833386691,0.005,4185.8,4185.7,23.6733]
[1754833387885,1.5694,4185.8,4185.7,22.11]
[1754833388189,0.005,4185.8,4185.7,22.106]
[1754833388385,1.1708,4185.8,4185.7,23.6842]
[1754833388591,0.362,4185.8,4185.7,23.6842]
[1754833388785,1.5694,4185.8,4185.7,23.6842]
[1754833388987,1.5694,4185.8,4185.7,22.106]
[1754833389884,1.3061,4185.4,4185.3,0.92862]
[1754833390080,1.2923,4185.7,4185.6,1.61428]
[1754833390282,1.5644,4185.7,4185.6,24.15998]
[1754833390783,1.5644,4185.7,4185.6,23.6822]
[1754833390990,1.5644,4185.7,4185.6,22.5548]
[1754833391283,1.5644,4185.7,4185.6,22.104]
[1754833391588,1.5644,4185.7,4185.6,23.4156]
[1754833392084,1.5644,4185.7,4185.6,22.5548]
[1754833392288,1.5644,4185.7,4185.6,23.1516]
[1754833392486,1.5644,4185.7,4185.6,23.4156]
[1754833392691,1.5644,4185.7,4185.6,23.6822]
[1754833392886,0.6354,4185.7,4185.6,23.6822]
[1754833393685,0.005,4185.8,4185.6,23.6822]
[1754833393990,0.005,4185.8,4185.7,1.5782]
[1754833395986,1.5694,4185.8,4185.7,1.5782]
[1754833400389,0.2784,4185.7,4185.5,0.4778]
[1754833400694,1.5644,4185.6,4185.5,0.9286]
[1754833400894,1.5644,4185.6,4185.5,23.4513]
[1754833401095,1.5644,4185.6,4185.5,23.4126]
[1754833401597,1.0277,4185.0,4184.9,1.78947]
[1754833401793,1.0277,4185.0,4184.9,24.15707]
[1754833401993,1.0277,4185.0,4184.9,22.101]
[1754833402192,1.5644,4185.0,4184.9,22.101]
[1754833402489,1.5644,4185.0,4184.9,22.7269]
[1754833402697,1.5644,4185.0,4184.9,23.4126]
[1754833402895,1.5644,4185.0,4184.9,23.6792]
[1754833403290,1.5644,4185.0,4184.9,24.15706]
[1754833403794,1.5644,4185.0,4184.9,23.4126]
[1754833404391,1.5644,4185.0,4184.9,23.6792]
[1754833405086,0.9075,4185.0,4184.9,23.6792]
[1754833405289,0.005,4185.8,4185.1,0.6857]
[1754833405485,1.5694,4185.8,4185.7,1.5782]
[1754833405690,1.5694,4185.8,4185.7,22.5518]
[1754833405890,1.5694,4185.8,4184.8,36.56310676]
[1754833405891,1.286,4185.2,4185.1,1.36775]
[1754833406191,1.5644,4185.2,4185.1,23.88945]
[1754833406392,0.9075,4185.2,4185.1,24.15605]
[1754833406901,0.6291,4185.2,4185.1,24.15605]
[1754833407196,1.5644,4185.5,4185.4,2.05601]
[1754833407392,1.5644,4185.5,4185.4,24.15701]
[1754833407592,0.357,4185.5,4185.4,24.15701]
[1754833407799,0.357,4185.7,4185.6,2.05599]
[1754833408100,0.357,4185.7,4185.6,24.15599]
[1754833408101,1.1658,4185.7,4185.6,24.15599]
[1754833408299,1.5644,4185.7,4185.6,24.15599]
[1754833408497,1.5644,4185.7,4185.6,23.6782]
[1754833411691,1.1658,4185.7,4185.6,23.6782]
[1754833412002,0.1841,4185.7,4185.6,23.6782]
[1754833412598,1.3061,4185.4,4185.3,0.89952]
[1754833412802,1.3061,4185.4,4185.3,23.44932]
[1754833413001,1.3061,4185.4,4185.3,23.02762]
[1754833413201,1.5644,4185.4,4185.3,23.02762]
[1754833414405,1.5644,4185.4,4185.3,22.5498]
[1754833414701,0.6291,4185.4,4185.0,0.6883]
[1754833414902,1.5644,4184.9,4184.8,35.1037]
[1754833415102,1.5644,4184.9,4184.8,57.94618]
[1754833415604,1.5644,4184.9,4184.8,56.516]
[1754833415798,1.5644,4184.9,4184.8,57.4676]
[1754833416398,1.5644,4184.9,4184.8,57.2101]
[1754833416602,1.5644,4184.9,4184.8,56.516]
[1754833416797,0.47788,4184.8,4184.2,2.14510676]
[1754833417002,0.6357,4184.3,4184.0,2.14510676]
[1754833417293,1.5641,4184.2,4184.1,22.098]
[1754833417900,0.2666,4183.8,4183.7,0.6327]
[1754833418098,1.5641,4183.8,4183.7,22.5557]
[1754833418708,0.47792,4184.6,4183.8,0.47799]
[1754833418905,0.47792,4184.6,4183.7,22.098]
[1754833418906,0.8918,4184.6,4184.5,0.6327]
[1754833419111,1.5641,4184.6,4184.5,23.6833]
[1754833419810,0.8918,4184.6,4184.5,23.6833]
[1754833420103,0.6723,4184.9,4184.6,0.47791]
[1754833420104,0.3899,4184.9,4184.6,0.47791]
[1754833420307,0.4527,4184.9,4184.8,1.5843]
[1754833420511,1.5641,4184.9,4184.8,23.6833]
[1754833423515,1.5641,4185.3,4185.2,1.5843]
[1754833423810,1.5641,4185.3,4185.2,23.6833]
[1754833424204,0.3691,4185.3,4185.2,23.6833]
[1754833424800,0.8918,4185.3,4185.2,23.6833]
[1754833425006,1.5641,4185.3,4185.2,23.6833]
[1754833426311,0.8918,4185.3,4185.2,23.6833]
[1754833426613,1.5641,4185.7,4185.6,1.5843]
[1754833426812,1.5641,4185.7,4185.6,23.6823]
[1754833427212,1.5641,4185.7,4185.6,18.6823]
[1754833427412,1.5641,4185.7,4185.6,19.11]
[1754833427712,1.5641,4185.7,4185.6,18.6823]
[1754833431615,0.9284,4185.2,4184.7,2.14510676]
[1754833431819,0.6357,4184.9,4184.8,23.39418]
[1754833432316,1.5641,4185.4,4185.3,0.47782]
[1754833432511,0.9284,4185.3,4185.2,23.39413]
[1754833432713,1.5641,4185.3,4185.2,23.39413]
[1754833434314,0.6723,4185.2,4184.7,0.47789]
[1754833434513,1.5641,4184.8,4184.7,0.47789]
[1754833434714,1.5641,4184.8,4184.7,22.57289]
[1754833435118,1.5641,4184.8,4184.7,22.84369]
[1754833435321,1.5641,4184.8,4184.7,23.39419]
[1754833436524,1.5641,4184.8,4184.7,22.095]
[1754833436726,1.5641,4184.8,4184.7,22.9163]
[1754833437423,1.3811,4184.8,4184.7,22.9163]
[1754833437627,1.5641,4184.8,4184.7,22.9163]
[1754833440526,1.5641,4184.8,4184.7,23.39419]
[1754833440826,1.1742,4184.8,4184.7,23.39419]
[1754833441326,0.5385,4184.8,4184.7,23.39419]
[1754833441528,1.5641,4185.5,4185.4,0.8213]
[1754833441726,1.5641,4185.5,4185.4,22.9143]
[1754833442428,2.0419,4185.5,4185.4,22.9143]
[1754833442834,2.0419,4185.5,4185.4,22.093]
[1754833443028,0.6357,4184.9,4184.8,0.47788]
[1754833443232,1.5641,4184.9,4184.8,22.9143]
[1754833447729,1.1742,4184.9,4184.8,22.9143]
[1754833447928,0.5385,4184.9,4184.8,23.0121]
[1754833448230,0.2824,4184.9,4184.8,23.0121]
[1754833449835,0.2587,4185.0,4184.9,1.40757]
[1754833451431,0.5326,4185.0,4184.9,1.40757]
[1754833452139,0.703,4185.0,4184.9,1.40757]
[1754833453439,0.2587,4185.0,4184.9,1.30977]
[1754833453642,1.5365,4185.3,4185.2,0.91654]
[1754833453940,1.5365,4185.3,4185.2,22.5257]
[1754833454140,1.5365,4185.3,4185.2,22.9189]
[1754833454936,1.5365,4185.3,4185.2,22.087]
[1754833455141,1.08953,4185.3,4184.8,0.47788]
[1754833455442,1.5365,4184.9,4184.8,0.47788]
[1754833455642,1.5365,4184.9,4184.8,22.087]
[1754833456441,0.6117,4184.4,4184.3,2.58400676]
[1754833456747,1.5365,4184.4,4184.3,23.00284]
[1754833456935,1.5365,4184.4,4184.3,23.39614]
[1754833458041,0.2587,4184.4,4184.3,23.49404]
[1754833458344,1.5365,4184.8,4184.7,0.8322]
[1754833458539,1.5365,4184.8,4184.7,22.9172]
[1754833458741,1.5365,4184.8,4184.7,22.5239]
[1754833459047,1.5365,4184.8,4184.7,22.9172]
[1754833462838,1.5365,4184.8,4184.7,22.085]
[1754833464444,1.5365,4184.8,4184.7,22.9172]
[1754833465845,1.5365,4184.8,4184.7,22.7606]
[1754833466246,2.01445,4184.3,4184.1,2.14510676]
[1754833466450,1.08965,4184.3,4184.2,22.083]
[1754833466843,1.08971,4183.7,4183.6,36.56310676]
[1754833467047,1.5365,4183.4,4183.3,2.14510676]
[1754833467250,0.6117,4183.4,4183.3,22.081]
[1754833467948,1.5365,4183.4,4183.3,22.081]
[1754833468350,1.5365,4183.4,4183.3,22.9132]
[1754833471654,1.5365,4183.4,4183.3,22.081]
[1754833471848,1.5365,4183.4,4183.3,22.9132]
[1754833473955,0.2587,4184.5,4184.1,0.47796]
[1754833474256,1.1443,4184.4,4184.3,0.4389]
[1754833474555,1.5365,4183.9,4183.8,0.9169]
[1754833474755,1.5365,4183.9,4183.8,23.3922]
[1754833475554,1.5365,4183.9,4183.8,22.9142]
[1754833477352,1.5365,4183.9,4183.8,22.082]
[1754833477553,1.5771,4183.2,4183.1,2.42020676]
[1754833477752,1.5771,4183.2,4183.1,22.3551]
[1754833477954,1.5771,4183.2,4183.1,22.7459]
[1754833478154,1.5771,4183.2,4183.1,22.9022]
[1754833478752,1.1831,4183.2,4183.1,22.9022]
[1754833479153,0.2726,4183.2,4183.1,22.9022]
[1754833479350,0.2699,4183.6,4183.1,22.9999]
[1754833479555,0.9116,4183.8,4183.7,1.30021]
[1754833479753,0.9116,4183.8,4183.7,23.38021]
[1754833480253,0.2726,4183.8,4183.7,23.47791]
[1754833480752,0.2699,4184.3,4184.1,0.3908]
[1754833480952,0.5425,4184.3,4184.2,23.37915]
[1754833481152,0.9116,4184.3,4184.2,23.37915]
[1754833481352,0.2726,4184.3,4184.2,23.47685]
[1754833482058,0.5425,4184.3,4184.2,23.47685]
[1754833482357,0.7294,4184.6,4184.5,0.90932]
[1754833482557,0.7294,4184.6,4184.5,23.37812]
[1754833482558,1.1831,4184.6,4184.5,23.37812]
[1754833482953,0.5425,4184.8,4184.7,1.30009]
[1754833483154,0.9116,4184.8,4184.7,1.30009]
[1754833483848,0.9116,4184.8,4184.5,22.078]
[1754833483849,0.9116,4185.0,4184.8,0.3908]
[1754833484054,0.9116,4185.0,4184.9,23.37707]
[1754833485863,1.1831,4185.0,4184.9,23.37707]
[1754833486365,1.5771,4185.0,4184.9,23.37707]
[1754833487163,1.5771,4185.0,4184.9,22.5084]
[1754833487361,0.6406,4185.0,4184.9,22.074]
[1754833487666,0.6406,4185.0,4184.3,0.47793]
[1754833487667,0.6406,4184.4,4184.3,0.47793]
[1754833487864,1.5771,4184.4,4184.3,22.55093]
[1754833488164,1.5771,4184.4,4184.3,23.37313]
[1754833488552,1.5771,4184.4,4184.3,22.8952]
[1754833488759,1.5771,4184.4,4184.3,22.073]
[1754833489062,0.5425,4184.4,4184.3,22.8952]
[1754833489266,1.3045,4184.8,4184.7,1.30009]
[1754833489461,0.9105,4184.8,4184.7,23.37109]
[1754833489658,0.3691,4185.1,4185.0,0.90926]
[1754833489857,1.5771,4185.1,4185.0,22.8932]
[1754833492065,1.5771,4185.1,4185.0,22.071]
[1754833492468,1.5771,4185.1,4184.6,0.4779]
[1754833492665,1.5771,4184.8,4184.7,22.069]
[1754833493469,1.5771,4184.8,4184.7,22.54689]
[1754833494567,1.5771,4184.8,4184.7,22.82199]
[1754833494866,1.5771,4184.8,4184.7,23.36909]
[1754833495568,0.5425,4184.8,4184.7,23.36909]
[1754833496069,0.5425,4184.8,4184.7,23.46679]
[1754833496263,0.2726,4184.8,4184.7,23.46679]
[1754833496663,1.3045,4185.5,4185.4,0.4314]
[1754833496965,1.5771,4185.5,4185.4,0.2751]
[1754833497263,0.7278,4185.4,4185.3,22.067]
[1754833497456,1.5771,4185.4,4185.3,22.067]
[1754833499066,1.5771,4185.2,4185.0,22.066]
[1754833499267,1.5771,4185.1,4185.0,22.4974]
[1754833499463,1.5771,4185.1,4185.0,22.8882]
[1754833500163,1.1831,4185.1,4185.0,22.8882]
[1754833500358,0.2726,4185.1,4185.0,22.8882]
[1754833500563,0.2726,4185.3,4185.2,0.2751]
[1754833500757,0.2726,4185.4,4185.3,0.9199]
[1754833500966,0.5425,4185.6,4185.5,0.5291]
[1754833501263,0.5425,4185.6,4185.5,22.5931]
[1754833501569,0.5425,4185.6,4185.5,22.9839]
[1754833502766,0.005,4185.8,4185.7,0.9199]
[1754833503166,0.005,4185.8,4185.7,6.9199]
[1754833503377,0.2699,4186.6,4186.5,0.90908]
[1754833503663,0.639,4186.6,4186.5,22.8814]
[1754833503971,1.1831,4186.6,4186.5,22.8814]
[1754833504162,1.5771,4186.6,4186.5,22.8814]
[1754833504364,1.1831,4186.6,4186.5,22.8814]
[1754833504575,1.5771,4187.1,4187.0,1.29702]
[1754833504766,1.5771,4187.1,4187.0,22.061]
[1754833504974,0.2726,4187.1,4187.0,22.8804]
[1754833505164,0.9116,4187.1,4187.0,22.8804]
[1754833505369,1.5937,4187.2,4187.1,0.2751]
[1754833505968,0.55,4187.4,4187.1,0.75272]
[1754833506173,1.5892,4187.3,4187.2,0.8038]
[1754833507667,1.3744,4187.5,4187.4,0.8038]
[1754833507867,1.558,4187.5,4187.4,0.8038]
[1754833508067,2.6892,4187.5,4187.4,0.8038]
[1754833508468,1.7304,4187.5,4187.2,0.47761]
[1754833508677,1.5892,4187.1,4187.0,22.061]
[1754833508868,1.5892,4187.1,4187.0,22.4771]
[1754833509169,0.55,4187.1,4187.0,22.8648]
[1754833509366,0.2744,4187.1,4187.0,22.8648]
[1754833509569,0.55,4187.1,4187.0,22.8648]
[1754833510170,1.1804,4187.4,4187.3,0.1559]
[1754833510477,0.2744,4187.4,4187.3,0.9012]
[1754833510668,1.1,4187.5,4187.4,0.73089]
[1754833510974,0.6149,4187.5,4187.4,25.86415416]
[1754833511971,1e-05,4187.5,4187.4,32.10461329]
[1754833516279,1e-05,4187.5,4187.4,26.10461329]
[1754833516481,1e-05,4187.5,4187.4,26.09561329]
[1754833517274,1e-05,4187.5,4187.4,32.09561329]
[1754833518882,1e-05,4187.5,4187.4,26.09261329]
[1754833519087,1e-05,4187.5,4187.4,25.99521329]
[1754833519280,0.27441,4187.5,4187.4,25.99521329]
[1754833520185,0.27441,4187.5,4187.4,3.95521329]
[1754833520480,0.55001,4187.5,4187.4,25.99421329]
[1754833520679,1.58921,4187.5,4187.4,25.83831329]
[1754833521580,1.58921,4187.5,4187.4,25.59785416]
[1754833521782,1.58921,4187.5,4187.4,3.08126416]
[1754833521984,1.58921,4187.5,4187.4,22.036]
[1754833522278,1.5892,4187.2,4187.1,34.409]
[1754833522491,1.5892,4187.2,4187.1,56.445]
[1754833522687,1.1804,4187.2,4187.1,56.445]
[1754833523278,1.1804,4187.3,4187.2,0.47761]
[1754833523476,1.5892,4187.3,4187.2,22.51361]
[1754833523678,1.5892,4187.3,4187.2,25.64414466]
[1754833523879,1.5892,4187.3,4187.2,22.51361]
[1754833525185,1.5892,4187.3,4187.2,22.036]
[1754833525387,1.5892,4187.2,4187.1,34.409]
[1754833525584,1.5892,4187.2,4187.1,56.444]
[1754833525788,0.7336,4187.2,4187.1,56.444]
[1754833526088,0.7336,4187.2,4187.1,59.57705649]
[1754833526289,1.1804,4187.2,4187.1,59.57705649]
[1754833526478,1.5892,4187.2,4187.1,59.57705649]